fUST/lending_fUST_20250531
["ID","MTS","AMOUNT","RATE_DAILY","PERIOD"]
[363260149,1748652653254,-151.0,0.00018696,2]
[363260151,1748652653264,-180.201543,0.00018696,2]
[363260153,1748652653273,-180.201543,0.00018696,2]
[363260155,1748652653282,-7000.0,0.00018696,2]
[363260157,1748652653291,-1355.4104408,0.00018729,21]
[363260158,1748652653300,-600.0,0.00018782,2]
[363260160,1748652653309,-157.5499743,0.00018795,2]
[363260162,1748652653319,-151.0,0.000188,2]
[363260164,1748652653329,-196.0,0.000188,3]
[363260167,1748652653339,-196.0,0.000188,2]
[363260169,1748652653349,-83097.30063506,0.0001881,2]
[363260171,1748652653358,-151.0,0.0001881,2]
[363260173,1748652653368,-151.0,0.0001881,2]
[363260175,1748652653377,-151.0,0.0001881,2]
[363260176,1748652653386,-167.823796,0.0001881,2]
[363260179,1748652653397,-282.884424,0.0001881,2]
[363260180,1748652653406,-282.884424,0.0001881,2]
[363260182,1748652653415,-575.560356,0.0001881,2]
[363260184,1748652653424,-575.560356,0.0001881,2]
[363260186,1748652653434,-151.0,0.0001881,2]
[363260188,1748652653443,-596.33933458,0.00018826,2]
[363260190,1748652653452,-961.0,0.00018833,2]
[363260192,1748652653462,-2228.0,0.00018833,2]
[363260194,1748652653471,-708.0,0.00018833,2]
[363260196,1748652653480,-150.0,0.00018833,2]
[363260198,1748652653490,-235.232,0.00018833,2]
[363260200,1748652653502,-151.658,0.00018833,2]
[363260202,1748652653511,-157.5499743,0.00018877,2]
[363260204,1748652653521,-193.0,0.000189,2]
[363260206,1748652653530,-193.0,0.000189,2]
[363260208,1748652653540,-193.0,0.000189,2]
[363260210,1748652653549,-193.0,0.000189,3]
[363260212,1748652653558,-193.0,0.000189,3]
[363260214,1748652653567,-151.0,0.000189,2]
[363260216,1748652653576,-193.0,0.000189,4]
[363260218,1748652653585,-193.0,0.000189,4]
[363260220,1748652653595,-190.6,0.000189,4]
[363260222,1748652653604,-5771.68284595,0.000189,2]
[363260224,1748652653613,-160.0,0.00018903,2]
[363260226,1748652653622,-430.0,0.00018903,2]
[363260228,1748652653631,-1175.73,0.00018903,2]
[363260230,1748652653641,-430.0,0.00018903,2]
[363260232,1748652653650,-3181.73,0.00018903,2]
[363260234,1748652653659,-804.95,0.00018903,2]
[363260236,1748652653668,-430.0,0.00018903,2]
[363260238,1748652653677,-1830.99,0.00018903,2]
[363260240,1748652653687,-1190.24,0.00018903,2]
[363260242,1748652653696,-430.0,0.00018903,2]
[363260244,1748652653709,-430.0,0.00018904,2]
[363260246,1748652653718,-430.0,0.00018904,2]
[363260248,1748652653727,-1259.52,0.00018904,2]
[363260250,1748652653736,-430.0,0.00018904,2]
[363260252,1748652653746,-430.0,0.00018904,2]
[363260254,1748652653758,-1601.0,0.00018904,2]
[363260256,1748652653767,-1540.39,0.00018904,2]
[363260258,1748652653776,-2452.49,0.00018904,2]
[363260260,1748652653786,-430.0,0.00018904,2]
[363260262,1748652653796,-2586.01,0.00018904,2]
[363260264,1748652653805,-151.0,0.00018904,2]
[363260266,1748652653814,-430.0,0.00018904,2]
[363260268,1748652653824,-543.35,0.00018904,2]
[363260270,1748652653833,-618.46,0.00018904,2]
[363260272,1748652653842,-4723.72,0.00018904,2]
[363260274,1748652653852,-430.0,0.00018904,2]
[363260276,1748652653861,-430.0,0.00018904,2]
[363260288,1748652653964,-527.01,0.00018904,2]
[363260290,1748652653973,-445.99,0.00018904,2]
[363260292,1748652653983,-910.35,0.00018904,2]
[363260294,1748652653992,-430.0,0.00018904,2]
[363260296,1748652654005,-545.39,0.00018904,2]
[363260298,1748652654014,-533.95,0.00018904,2]
[363260300,1748652654023,-151.0,0.00018904,2]
[363260302,1748652654032,-3010.76,0.00018904,2]
[363260304,1748652654041,-565.13,0.00018904,2]
[363260306,1748652654051,-469.89,0.00018904,2]
[363260308,1748652654061,-966.84,0.00018904,2]
[363260310,1748652654070,-1737.31,0.00018904,2]
[363260312,1748652654080,-3947.32,0.00018904,2]
[363260314,1748652654089,-430.0,0.00018904,2]
[363260316,1748652654099,-576.03,0.00018904,2]
[363260318,1748652654109,-3363.45,0.00018904,2]
[363260320,1748652654118,-430.0,0.00018904,2]
[363260322,1748652654128,-1216.53,0.00018904,2]
[363260324,1748652654137,-629.35,0.00018904,2]
[363260326,1748652654146,-846.78,0.00018904,2]
[363260328,1748652654155,-430.0,0.00018904,2]
[363260330,1748652654164,-430.0,0.00018904,2]
[363260332,1748652654173,-430.0,0.00018904,2]
[363260334,1748652654183,-430.0,0.00018904,2]
[363260336,1748652654192,-496.57,0.00018904,2]
[363260338,1748652654202,-430.0,0.00018904,2]
[363260340,1748652654211,-430.0,0.00018904,2]
[363260342,1748652654220,-289.288518,0.00018904,2]
[363260344,1748652654229,-430.0,0.00018904,2]
[363260346,1748652654239,-468.99,0.00018904,2]
[363260348,1748652654251,-987.7,0.00018904,2]
[363260350,1748652654260,-2149.03,0.00018904,2]
[363260352,1748652654269,-289.288518,0.00018904,2]
[363260354,1748652654279,-430.0,0.00018904,2]
[363260356,1748652654288,-430.0,0.00018904,2]
[363260358,1748652654299,-430.0,0.00018904,2]
[363260360,1748652654309,-430.0,0.00018904,2]
[363260362,1748652654318,-1725.91,0.00018904,2]
[363260364,1748652654328,-1766.85,0.00018904,2]
[363260366,1748652654339,-430.0,0.00018904,2]
[363260368,1748652654348,-430.0,0.00018904,2]
[363260370,1748652654358,-3215.63,0.00018904,2]
[363260372,1748652654368,-430.0,0.00018904,2]
[363260374,1748652654377,-150.13706857,0.00018937,2]
[363260376,1748652654386,-2500.0,0.00018953,2]
[363260378,1748652654396,-157.5499743,0.00018959,2]
[363260380,1748652654405,-1355.4104408,0.00018966,22]
[363260382,1748652654414,-437.28126419,0.00018973,2]
[363260384,1748652654423,-600.0,0.00018976,2]
[363260386,1748652654432,-196.0,0.00019,3]
[363260388,1748652654443,-151.0,0.00019,2]
[363260390,1748652654452,-151.0,0.00019,2]
[363260392,1748652654461,-151.0,0.00019,2]
[363260394,1748652654470,-273.0,0.00019,2]
[363260396,1748652654479,-273.0,0.00019,2]
[363260398,1748652654490,-151.0,0.00019,2]
[363260400,1748652654500,-151.0,0.00019,2]
[363260402,1748652654510,-365.194504,0.00019,2]
[363260404,1748652654519,-365.194504,0.00019,2]
[363260406,1748652654528,-500.0,0.00019,2]
[363260408,1748652654537,-6279.32326587,0.00019003,2]
[363260410,1748652654546,-2965.21142222,0.0001904,2]
[363260412,1748652654555,-531.228357,0.0001904,2]
[363260414,1748652654565,-531.228357,0.0001904,2]
[363260416,1748652654574,-151.0,0.0001904,2]
[363260418,1748652654584,-597.63675771,0.0001904,2]
[363260420,1748652654593,-157.5499743,0.00019041,2]
[363260422,1748652654603,-5325.811402,0.0001905,2]
[363260424,1748652654612,-1214.652158,0.0001905,2]
[363260426,1748652654621,-1214.652158,0.0001905,2]
[363260428,1748652654631,-151.360701,0.0001905,2]
[363260430,1748652654640,-359.490289,0.0001905,2]
[363260432,1748652654650,-359.490289,0.0001905,2]
[363260434,1748652654660,-2678.415307,0.0001905,2]
[363260436,1748652654671,-206.848488,0.0001905,2]
[363260438,1748652654681,-206.848488,0.0001905,2]
[363260440,1748652654691,-273.0,0.000191,2]
[363260442,1748652654710,-151.0,0.00019135,2]
[363260444,1748652654719,-151.0,0.00019135,2]
[363260446,1748652654728,-259.430525,0.00019135,2]
[363260448,1748652654738,-151.0,0.00019135,2]
[363260450,1748652654749,-151.0,0.00019135,2]
[363260452,1748652654759,-175.734,0.00019135,2]
[363260454,1748652654768,-175.734,0.00019135,2]
[363260456,1748652654777,-180.201543,0.00019135,2]
[363260458,1748652654788,-180.201543,0.00019135,2]
[363260460,1748652654798,-5000.0,0.00019145,2]
[363260462,1748652654807,-2500.0,0.00019164,2]
[363260464,1748652654816,-775.13718362,0.00019169,2]
[363260466,1748652654826,-7403.02330967,0.00019171,2]
[363260468,1748652654835,-1000.0,0.00019177,2]
[363260470,1748652654844,-151.0,0.00019177,2]
[363260472,1748652654854,-151.0,0.00019177,2]
[363260474,1748652654863,-151.0,0.00019177,2]
[363260476,1748652654872,-160.0,0.00019177,2]
[363260478,1748652654882,-430.0,0.00019177,2]
[363260480,1748652654891,-1175.73,0.00019177,2]
[363260482,1748652654900,-430.0,0.00019177,2]
[363260484,1748652654909,-3181.73,0.00019177,2]
[363260486,1748652654919,-804.95,0.00019177,2]
[363260488,1748652654927,-529.04,0.00019177,2]
[363260490,1748652654937,-1830.99,0.00019177,2]
[363260492,1748652654948,-1190.24,0.00019177,2]
[363260494,1748652654957,-430.0,0.00019177,2]
[363260496,1748652654967,-151.0,0.00019178,2]
[363260498,1748652654976,-151.0,0.00019178,2]
[363260500,1748652654985,-151.0,0.00019178,2]
[363260502,1748652654997,-151.0,0.00019178,2]
[363260504,1748652655006,-496.6,0.00019178,2]
[363260506,1748652655015,-151.0,0.00019178,2]
[363260508,1748652655025,-452.797109,0.00019178,2]
[363260510,1748652655035,-430.0,0.00019178,2]
[363260512,1748652655045,-151.0,0.00019178,2]
[363260514,1748652655054,-151.0,0.00019178,2]
[363260516,1748652655064,-1259.52,0.00019178,2]
[363260518,1748652655074,-430.0,0.00019178,2]
[363260520,1748652655083,-430.0,0.00019178,2]
[363260522,1748652655092,-430.0,0.00019178,2]
[363260524,1748652655101,-430.0,0.00019178,2]
[363260526,1748652655110,-430.0,0.00019178,2]
[363260528,1748652655119,-430.0,0.00019178,2]
[363260530,1748652655128,-430.0,0.00019178,2]
[363260532,1748652655138,-151.0,0.00019178,2]
[363260534,1748652655148,-430.0,0.00019178,2]
[363260536,1748652655157,-1601.0,0.00019178,2]
[363260538,1748652655167,-1540.39,0.00019178,2]
[363260540,1748652655177,-2452.49,0.00019178,2]
[363260542,1748652655186,-151.0,0.00019178,2]
[363260544,1748652655196,-430.0,0.00019178,2]
[363260546,1748652655206,-2586.01,0.00019178,2]
[363260548,1748652655216,-252.481315,0.00019178,2]
[363260550,1748652655225,-215.24,0.00019178,2]
[363260552,1748652655234,-543.35,0.00019178,2]
[363260554,1748652655244,-618.46,0.00019178,2]
[363260556,1748652655254,-282.884424,0.00019178,2]
[363260558,1748652655264,-282.884424,0.00019178,2]
[363260560,1748652655274,-4723.72,0.00019178,2]
[363260562,1748652655283,-430.0,0.00019178,2]
[363260563,1748652655292,-430.0,0.00019178,2]
[363260564,1748652655302,-527.01,0.00019178,2]
[363260565,1748652655312,-445.99,0.00019178,2]
[363260566,1748652655321,-910.35,0.00019178,2]
[363260567,1748652655331,-430.0,0.00019178,2]
[363260568,1748652655340,-545.39,0.00019178,2]
[363260569,1748652655350,-575.560356,0.00019178,2]
[363260570,1748652655359,-575.560356,0.00019178,2]
[363260571,1748652655369,-151.0,0.00019178,2]
[363260572,1748652655378,-151.0,0.00019178,2]
[363260573,1748652655387,-3010.76,0.00019178,2]
[363260574,1748652655397,-565.13,0.00019178,2]
[363260575,1748652655407,-966.84,0.00019178,2]
[363260576,1748652655416,-1737.31,0.00019178,2]
[363260577,1748652655426,-3947.32,0.00019178,2]
[363260578,1748652655436,-430.0,0.00019178,2]
[363260579,1748652655445,-576.03,0.00019178,2]
[363260580,1748652655455,-3363.45,0.00019178,2]
[363260581,1748652655464,-430.0,0.00019178,2]
[363260583,1748652655473,-1216.53,0.00019178,2]
[363260585,1748652655482,-629.35,0.00019178,2]
[363260587,1748652655492,-846.78,0.00019178,2]
[363260589,1748652655503,-430.0,0.00019178,2]
[363260591,1748652655513,-430.0,0.00019178,2]
[363260593,1748652655523,-430.0,0.00019178,2]
[363260595,1748652655533,-430.0,0.00019178,2]
[363260597,1748652655543,-496.57,0.00019178,2]
[363260599,1748652655553,-430.0,0.00019178,2]
[363260601,1748652655562,-430.0,0.00019178,2]
[363260603,1748652655571,-430.0,0.00019178,2]
[363260605,1748652655581,-468.99,0.00019178,2]
[363260607,1748652655591,-289.288518,0.00019178,2]
[363260609,1748652655601,-987.7,0.00019178,2]
[363260611,1748652655611,-2149.03,0.00019178,2]
[363260613,1748652655620,-289.288518,0.00019178,2]
[363260615,1748652655629,-430.0,0.00019178,2]
[363260617,1748652655639,-430.0,0.00019178,2]
[363260619,1748652655648,-430.0,0.00019178,2]
[363260621,1748652655657,-430.0,0.00019178,2]
[363260623,1748652655667,-1725.91,0.00019178,2]
[363260625,1748652655675,-1766.85,0.00019178,2]
[363260627,1748652655686,-430.0,0.00019178,2]
[363260629,1748652655695,-430.0,0.00019178,2]
[363260631,1748652655708,-3215.63,0.00019178,2]
[363260633,1748652655717,-536.94546994,0.00019178,2]
[363260645,1748652655819,-536.94546994,0.00019178,2]
[363260647,1748652655829,-536.94546994,0.00019178,2]
[363260649,1748652655839,-536.94546994,0.00019178,2]
[363260651,1748652655848,-536.94546994,0.00019178,2]
[363260653,1748652655858,-536.94546994,0.00019178,2]
[363260655,1748652655868,-536.94546994,0.00019178,2]
[363260657,1748652655877,-536.94546994,0.00019178,2]
[363260659,1748652655886,-536.94546994,0.00019178,2]
[363260661,1748652655895,-536.94546994,0.00019178,2]
[363260663,1748652655905,-536.94546994,0.00019178,2]
[363260665,1748652655914,-536.94546994,0.00019178,2]
[363260667,1748652655922,-536.94546994,0.00019178,2]
[363260669,1748652655931,-536.94546994,0.00019178,2]
[363260671,1748652655940,-536.94546994,0.00019178,2]
[363260673,1748652655950,-500.0,0.00019178,2]
[363260675,1748652655961,-500.0,0.00019178,2]
[363260677,1748652655970,-500.0,0.00019178,2]
[363260679,1748652655981,-500.0,0.00019178,2]
[363260681,1748652655990,-500.0,0.00019178,2]
[363260683,1748652656001,-500.0,0.00019178,2]
[363260685,1748652656011,-500.0,0.00019178,2]
[363260687,1748652656020,-500.0,0.00019178,2]
[363260689,1748652656030,-500.0,0.00019178,2]
[363260691,1748652656039,-500.0,0.00019178,2]
[363260693,1748652656048,-500.0,0.00019178,2]
[363260695,1748652656058,-500.0,0.00019178,2]
[363260697,1748652656067,-500.0,0.00019178,2]
[363260699,1748652656076,-500.0,0.00019178,2]
[363260701,1748652656086,-500.0,0.00019178,2]
[363260703,1748652656095,-500.0,0.00019178,2]
[363260705,1748652656104,-500.0,0.00019178,2]
[363260707,1748652656113,-500.0,0.00019178,2]
[363260709,1748652656123,-500.0,0.00019178,2]
[363260711,1748652656132,-500.0,0.00019178,2]
[363260713,1748652656142,-500.0,0.00019178,2]
[363260715,1748652656150,-500.0,0.00019178,2]
[363260717,1748652656160,-500.0,0.00019178,2]
[363260719,1748652656171,-500.0,0.00019178,2]
[363260721,1748652656181,-500.0,0.00019178,2]
[363260723,1748652656190,-500.0,0.00019178,2]
[363260725,1748652656200,-500.0,0.00019178,2]
[363260727,1748652656210,-500.0,0.00019178,2]
[363260729,1748652656220,-500.0,0.00019178,2]
[363260731,1748652656229,-500.0,0.00019178,2]
[363260733,1748652656239,-558.42751985,0.00019178,2]
[363260735,1748652656249,-500.0,0.00019178,2]
[363260737,1748652656259,-500.0,0.00019178,2]
[363260739,1748652656270,-500.0,0.00019178,2]
[363260741,1748652656280,-500.0,0.00019178,2]
[363260743,1748652656291,-500.0,0.00019178,2]
[363260745,1748652656301,-500.0,0.00019178,2]
[363260747,1748652656310,-500.0,0.00019178,2]
[363260749,1748652656319,-500.0,0.00019178,2]
[363260751,1748652656329,-500.0,0.00019178,2]
[363260753,1748652656338,-536.94546994,0.00019178,2]
[363260755,1748652656348,-430.0,0.00019178,2]
[363260757,1748652656358,-151.0,0.00019178,2]
[363260759,1748652656368,-616.482552,0.00019178,2]
[363260761,1748652656377,-6000.0,0.00019178,2]
[363260763,1748652656388,-304.0,0.000192,2]
[363260765,1748652656397,-2271.62,0.000192,2]
[363260767,1748652656407,-151.0,0.000192,2]
[363260769,1748652656418,-212.7380601,0.000192,3]
[363260771,1748652656428,-314.81381568,0.000192,3]
[363260773,1748652656437,-12663.11115519,0.000192,3]
[363260775,1748652656447,-842.5625,0.000192,3]
[363260777,1748652656456,-1355.4104408,0.00019202,24]
[363260779,1748652656465,-153.0,0.00019205,2]
[363260781,1748652656476,-206.0,0.0001922,2]
[363260783,1748652656486,-156.587,0.00019233,2]
[363260785,1748652656495,-2694.76,0.00019254,2]
[363260787,1748652656506,-162.380719,0.00019288,2]
[363260789,1748652656516,-450.27326075,0.00019297,2]
[363260791,1748652656526,-500.0,0.00019297,2]
[363260793,1748652656535,-500.44475395,0.00019297,2]
[363260795,1748652656544,-500.0,0.00019297,2]
[363260797,1748652656553,-500.0,0.00019297,2]
[363260799,1748652656563,-500.0,0.00019297,2]
[363260801,1748652656572,-600.0,0.00019297,2]
[363260803,1748652656581,-500.0,0.00019297,2]
[363260805,1748652656591,-500.0,0.00019297,2]
[363260807,1748652656600,-500.0,0.00019297,2]
[363260809,1748652656609,-501.82857782,0.00019297,2]
[363260811,1748652656619,-271.63902336,0.00019297,2]
[363260813,1748652656627,-500.0,0.00019297,2]
[363260815,1748652656636,-531.228357,0.00019313,2]
[363260817,1748652656646,-531.228357,0.00019313,2]
[363260819,1748652656656,-151.0,0.00019313,2]
[363260821,1748652656665,-2678.415307,0.00019313,2]
[363260823,1748652656675,-206.848488,0.00019313,2]
[363260825,1748652656685,-206.848488,0.00019313,2]
[363260826,1748652656694,-6279.32326587,0.00019314,2]
[363260829,1748652656706,-151.0,0.00019329,2]
[363260831,1748652656716,-151.0,0.00019329,2]
[363260833,1748652656725,-151.0,0.00019329,2]
[363260835,1748652656735,-151.0,0.00019329,2]
[363260837,1748652656746,-365.194504,0.00019329,2]
[363260839,1748652656756,-365.194504,0.00019329,2]
[363260841,1748652656765,-151.0,0.00019329,2]
[363260843,1748652656774,-151.0,0.00019329,2]
[363260845,1748652656785,-151.0,0.00019329,2]
[363260847,1748652656795,-192.314828,0.00019329,2]
[363260849,1748652656804,-192.314828,0.00019329,2]
[363260851,1748652656814,-538.374031,0.00019329,2]
[363260853,1748652656823,-538.374031,0.00019329,2]
[363260855,1748652656832,-1161.758364,0.00019329,2]
[363260857,1748652656842,-1161.758364,0.00019329,2]
[363260859,1748652656852,-151.0,0.00019329,2]
[363260861,1748652656861,-206.181133,0.00019329,2]
[363260863,1748652656871,-206.181133,0.00019329,2]
[363260865,1748652656881,-1214.652158,0.00019329,2]
[363260867,1748652656891,-1214.652158,0.00019329,2]
[363260869,1748652656900,-359.490289,0.00019329,2]
[363260870,1748652656908,-359.490289,0.00019329,2]
[363260872,1748652656918,-151.0,0.00019329,2]
[363260875,1748652656927,-151.0,0.00019329,2]
[363260876,1748652656936,-151.0,0.00019329,2]
[363260878,1748652656946,-151.0,0.00019329,2]
[363260880,1748652656956,-151.0,0.00019329,2]
[363260882,1748652656966,-151.0,0.00019329,2]
[363260884,1748652656976,-175.734,0.00019329,2]
[363260886,1748652656985,-175.734,0.00019329,2]
[363260889,1748652656994,-282.884424,0.00019329,2]
[363260890,1748652657006,-282.884424,0.00019329,2]
[363260892,1748652657021,-180.201543,0.00019329,2]
[363260894,1748652657031,-180.201543,0.00019329,2]
[363260897,1748652657040,-66522.14438917,0.00019329,2]
[363260898,1748652657049,-168.3888056,0.00019343,2]
[363260901,1748652657059,-500.0,0.00019361,2]
[363260903,1748652657068,-500.0,0.00019361,2]
[363260904,1748652657078,-500.8356264,0.00019361,2]
[363260906,1748652657087,-160.16383769,0.00019361,2]
[363260908,1748652657097,-502.35123899,0.00019361,2]
[363260911,1748652657107,-500.0,0.00019361,2]
[363260913,1748652657117,-500.0,0.00019361,2]
[363260915,1748652657126,-500.69718326,0.00019361,2]
[363260917,1748652657136,-500.0,0.00019361,2]
[363260919,1748652657145,-500.51724939,0.00019361,2]
[363260921,1748652657154,-500.0,0.00019361,2]
[363260923,1748652657164,-500.0,0.00019361,2]
[363260925,1748652657173,-500.0,0.00019361,2]
[363260927,1748652657182,-500.0,0.00019361,2]
[363260929,1748652657192,-500.0,0.00019361,2]
[363260931,1748652657201,-500.0,0.00019361,2]
[363260933,1748652657215,-500.0,0.00019361,2]
[363260935,1748652657228,-500.0,0.00019361,2]
[363260937,1748652657238,-341.46195536,0.00019376,2]
[363260939,1748652657249,-575.15556339,0.00019376,2]
[363260941,1748652657258,-160.16771717,0.00019376,2]
[363260943,1748652657268,-500.0,0.00019376,2]
[363260945,1748652657277,-575.560356,0.00019383,2]
[363260947,1748652657286,-575.560356,0.00019383,2]
[363260949,1748652657295,-152.018199,0.00019383,2]
[363260951,1748652657305,-174.61919141,0.00019398,2]
[363260953,1748652657314,-151.0,0.000194,2]
[363260955,1748652657324,-151.0,0.00019402,2]
[363260957,1748652657333,-289.288518,0.00019402,2]
[363260959,1748652657343,-289.288518,0.00019402,2]
[363260961,1748652657353,-151.0,0.00019409,2]
[363260963,1748652657363,-151.0,0.00019412,2]
[363260965,1748652657374,-452.797109,0.00019412,2]
[363260967,1748652657383,-151.0,0.00019412,2]
[363260969,1748652657393,-151.0,0.00019412,2]
[363260971,1748652657403,-2200.0,0.00019412,2]
[363260973,1748652657413,-215.0738,0.00019418,2]
[363260975,1748652657423,-1355.4104408,0.00019439,25]
[363260977,1748652657432,-430.0,0.00019451,2]
[363260979,1748652657442,-1175.73,0.00019451,2]
[363260990,1748652657537,-430.0,0.00019451,2]
[363260992,1748652657547,-3181.73,0.00019451,2]
[363260994,1748652657557,-804.95,0.00019451,2]
[363260996,1748652657567,-1830.99,0.00019451,2]
[363260998,1748652657576,-1190.24,0.00019451,2]
[363261000,1748652657584,-430.0,0.00019451,2]
[363261002,1748652657594,-430.0,0.00019452,2]
[363261004,1748652657603,-1259.52,0.00019452,2]
[363261006,1748652657612,-430.0,0.00019452,2]
[363261008,1748652657622,-430.0,0.00019452,2]
[363261010,1748652657631,-1601.0,0.00019452,2]
[363261012,1748652657641,-1540.39,0.00019452,2]
[363261015,1748652657651,-2452.49,0.00019452,2]
[363261016,1748652657659,-430.0,0.00019452,2]
[363261019,1748652657669,-2586.01,0.00019452,2]
[363261020,1748652657678,-543.35,0.00019452,2]
[363261023,1748652657687,-618.46,0.00019452,2]
[363261024,1748652657697,-4723.72,0.00019452,2]
[363261026,1748652657709,-430.0,0.00019452,2]
[363261028,1748652657718,-430.0,0.00019452,2]
[363261030,1748652657727,-527.01,0.00019452,2]
[363261032,1748652657739,-445.99,0.00019452,2]
[363261035,1748652657750,-910.35,0.00019452,2]
[363261036,1748652657759,-430.0,0.00019452,2]
[363261038,1748652657768,-545.39,0.00019452,2]
[363261040,1748652657778,-3010.76,0.00019452,2]
[363261042,1748652657787,-565.13,0.00019452,2]
[363261044,1748652657797,-966.84,0.00019452,2]
[363261047,1748652657807,-1737.31,0.00019452,2]
[363261049,1748652657816,-3947.32,0.00019452,2]
[363261051,1748652657825,-430.0,0.00019452,2]
[363261052,1748652657835,-576.03,0.00019452,2]
[363261055,1748652657844,-3363.45,0.00019452,2]
[363261057,1748652657853,-430.0,0.00019452,2]
[363261059,1748652657862,-629.35,0.00019452,2]
[363261061,1748652657872,-1216.53,0.00019452,2]
[363261062,1748652657881,-846.78,0.00019452,2]
[363261064,1748652657890,-430.0,0.00019452,2]
[363261067,1748652657899,-430.0,0.00019452,2]
[363261068,1748652657909,-360.18,0.00019452,2]
[363261071,1748652657918,-430.0,0.00019452,2]
[363261073,1748652657927,-496.57,0.00019452,2]
[363261075,1748652657938,-430.0,0.00019452,2]
[363261077,1748652657947,-430.0,0.00019452,2]
[363261078,1748652657956,-430.0,0.00019452,2]
[363261080,1748652657966,-468.99,0.00019452,2]
[363261082,1748652657975,-987.7,0.00019452,2]
[363261084,1748652657984,-2149.03,0.00019452,2]
[363261086,1748652657993,-430.0,0.00019452,2]
[363261088,1748652658004,-430.0,0.00019452,2]
[363261090,1748652658013,-430.0,0.00019452,2]
[363261092,1748652658023,-430.0,0.00019452,2]
[363261094,1748652658032,-1725.91,0.00019452,2]
[363261096,1748652658042,-1766.85,0.00019452,2]
[363261098,1748652658051,-430.0,0.00019452,2]
[363261100,1748652658060,-430.0,0.00019452,2]
[363261102,1748652658070,-3215.63,0.00019452,2]
[363261104,1748652658080,-430.0,0.00019452,2]
[363261106,1748652658090,-181.08010149,0.00019453,2]
[363261108,1748652658099,-500.0,0.00019483,2]
[363261110,1748652658108,-160.0,0.00019499,2]
[363261112,1748652658117,-78897.95051585,0.000195,2]
[363261132,1748652658535,-0.014643,0.00016438,2]
[363261134,1748652658548,-429.985357,0.00016438,2]
[363261136,1748652658558,-430.0,0.00016712,2]
[363261138,1748652658567,-2674.22806157,0.000195,2]
[363261143,1748652658604,-1525.95389307,0.000195,2]
[363262198,1748653205688,5000.0,0.000141,2]
[363262199,1748653221456,5000.0,0.000141,2]
[363262200,1748653239237,5000.0,0.000141,2]
[363262202,1748653253893,5000.0,0.000141,2]
[363262203,1748653269219,5000.0,0.000141,2]
[363262204,1748653284401,5000.0,0.000141,2]
[363262205,1748653299630,5000.0,0.000141,2]
[363262206,1748653314794,5000.0,0.000141,2]
[363262207,1748653330594,5000.0,0.000141,2]
[363262208,1748653345924,5000.0,0.000141,2]
[363262209,1748653361764,5000.0,0.000141,2]
[363262210,1748653378369,5000.0,0.000141,2]
[363262211,1748653395801,5000.0,0.000141,2]
[363262212,1748653412043,5000.0,0.000141,2]
[363262213,1748653427683,5000.0,0.000141,2]
[363262214,1748653444163,5000.0,0.000141,2]
[363262215,1748653460390,5000.0,0.000141,2]